bitfinex/quotes_ETHUSD_20250810
["timestamp","ask_amount","ask_price","bid_price","bid_amount"]
[1754835694649,1.16494795,4207.7,4207.6,0.21957946]
[1754835694845,3.54154323,4207.7,4207.1,0.001]
[1754835695078,2.37665618,4207.6,4207.2,0.21958003]
[1754835695277,2.83115618,4207.6,4207.3,0.21958003]
[1754835695470,0.4545,4207.5,4207.4,0.21958003]
[1754835695782,2.83120825,4207.5,4207.4,0.21958003]
[1754835695982,2.37687773,4207.2,4207.1,0.001]
[1754835696282,2.37687773,4207.2,4207.1,0.22055795]
[1754835696500,0.4545,4207.2,4207.1,0.22055795]
[1754835696648,2.37682985,4207.3,4207.1,0.22055795]
[1754835696844,2.37682985,4207.3,4207.2,0.21955795]
[1754835696845,2.89762366,4207.3,4207.2,0.21955795]
[1754835697148,2.94762366,4207.3,4207.1,0.001]
[1754835697345,0.4545,4207.2,4207.1,0.001]
[1754835697548,0.4545,4207.2,4207.1,0.22050868]
[1754835698490,0.1192,4207.2,4207.1,0.22050868]
[1754835698985,0.00200001,4207.9,4207.2,2.37687773]
[1754835699151,0.00200001,4207.9,4207.7,2.37659528]
[1754835699348,0.00200001,4207.9,4207.8,2.59604748]
[1754835699548,0.00200001,4207.9,4207.8,3.51274748]
[1754835700548,0.00200001,4207.9,4207.8,3.53651286]
[1754835700771,0.00200001,4207.9,4207.8,4.37741149]
[1754835700971,0.00200001,4207.9,4207.8,4.35350916]
[1754835701253,0.00200001,4207.9,4207.8,8.11450916]
[1754835701886,0.00200001,4207.9,4207.8,4.35350916]
[1754835702087,0.00200001,4207.9,4207.8,8.11450916]
[1754835705387,0.00200001,4207.9,4207.8,7.19680916]
[1754835705591,0.00200001,4207.9,4207.8,7.89413743]
[1754835706994,0.00200001,4207.9,4207.8,8.01333743]
[1754835708564,1e-08,4207.9,4207.8,8.01333743]
[1754835708765,0.002,4208.4,4208.1,2.37636938]
[1754835708766,1e-08,4208.2,4208.1,2.37636938]
[1754835708994,1e-08,4208.2,4208.1,7.5816108]
[1754835709202,1e-08,4208.2,4208.1,8.4802108]
[1754835709608,1e-08,4208.2,4208.1,7.5816108]
[1754835709803,1e-08,4208.2,4208.1,8.0245108]
[1754835710671,1e-08,4208.2,4208.1,7.5816108]
[1754835711062,1e-08,4208.2,4208.1,3.8226108]
[1754835711293,1e-08,4208.2,4208.1,6.25456938]
[1754835711481,1e-08,4208.2,4208.1,2.49556938]
[1754835711998,0.47015793,4208.8,4208.2,2.37630263]
[1754835712202,0.58855793,4208.8,4208.2,2.37630263]
[1754835712702,0.1184,4208.8,4208.2,2.37630263]
[1754835712870,0.1184,4208.8,4208.3,2.37624559]
[1754835713376,0.1184,4208.8,4208.4,2.37614652]
[1754835713963,0.5983,4208.8,4208.4,2.37614652]
[1754835714193,0.5983,4208.8,4208.6,2.37604814]
[1754835714398,0.1184,4208.8,4208.6,2.37604814]
[1754835714561,0.1184,4208.8,4208.7,2.3760306]
[1754835715903,0.1184,4208.8,4208.6,2.37607452]
[1754835716201,0.5983,4208.8,4208.5,2.37613094]
[1754835716371,0.4799,4208.7,4208.5,2.37613094]
[1754835716566,0.4799,4208.7,4208.1,0.1192]
[1754835716567,0.4799,4208.7,4208.4,2.37618709]
[1754835717081,0.4799,4208.7,4208.5,2.37612764]
[1754835717287,0.1184,4208.8,4208.4,2.37618617]
[1754835717506,0.1184,4208.8,4208.5,2.37614351]
[1754835717507,0.4799,4208.6,4208.5,2.37614351]
[1754835717878,0.1184,4208.8,4208.3,2.3762432]
[1754835718201,0.1184,4208.8,4208.1,0.1192]
[1754835718521,0.04,4208.9,4208.7,2.3760306]
[1754835718802,0.04,4208.9,4208.8,2.81887414]
[1754835720217,0.04,4208.9,4208.8,3.27457414]
[1754835722396,0.04,4208.9,4208.8,2.81887414]
[1754835722902,0.04,4208.9,4208.7,0.1192]
[1754835723394,0.04,4208.9,4208.8,2.37597414]
[1754835724806,0.04,4208.9,4208.8,3.30599921]
[1754835725116,0.002,4209.1,4209.0,2.37586124]
[1754835725403,0.002,4209.1,4209.0,2.49426124]
[1754835725611,2.85507174,4210.3,4209.0,2.49426124]
[1754835725612,3.0,4210.3,4209.0,0.8986]
[1754835725796,0.59,4210.9,4209.0,0.8986]
[1754835725797,0.1184,4209.8,4209.7,2.37546618]
[1754835725974,0.04,4210.9,4209.7,7.02906618]
[1754835726175,0.1184,4210.6,4210.0,0.1184]
[1754835726593,0.04,4210.9,4210.0,0.1184]
[1754835726594,0.04,4210.9,4210.1,0.4557]
[1754835726791,0.04,4210.9,4210.4,2.37507125]
[1754835726792,0.1584,4210.9,4210.4,2.37507125]
[1754835727034,0.04,4210.9,4210.8,2.37484563]
[1754835727392,0.04,4210.9,4210.8,2.81774563]
[1754835727691,0.04,4210.9,4210.8,2.37484563]
[1754835728234,0.004,4211.5,4211.4,2.37450728]
[1754835728628,0.004,4211.5,4211.2,2.37460905]
[1754835728827,0.004,4211.5,4211.4,2.37450728]
[1754835729033,0.004,4211.5,4211.3,0.4429]
[1754835729515,0.004,4211.5,4211.1,0.1184]
[1754835729895,0.25368144,4211.5,4211.1,0.1184]
[1754835730097,2.62813465,4211.5,4211.1,0.1184]
[1754835730315,0.25368144,4211.5,4210.6,4.1969]
[1754835730523,0.004,4211.5,4210.9,0.1184]
[1754835731138,2.37850442,4211.5,4210.9,0.1184]
[1754835731431,0.004,4211.5,4210.9,2.49318731]
[1754835731608,0.004,4211.5,4210.9,0.1184]
[1754835731926,0.004,4211.5,4210.9,0.58504789]
[1754835732223,0.004,4211.5,4210.9,3.41553155]
[1754835732427,0.004,4211.5,4211.0,0.4429]
[1754835732833,0.004,4211.5,4211.1,0.8986]
[1754835733329,0.004,4211.5,4211.4,2.37450728]
[1754835733493,0.004,4211.5,4211.2,0.8986]
[1754835733923,0.004,4211.5,4211.3,0.4429]
[1754835734313,0.004,4211.5,4211.1,0.4429]
[1754835734490,0.004,4211.5,4211.2,0.4429]
[1754835734694,0.004,4211.5,4210.9,0.1184]
[1754835735134,0.004,4211.5,4210.2,0.4429]
[1754835735135,0.1184,4211.3,4210.7,0.1184]
[1754835735333,0.1184,4211.0,4210.4,0.1184]
[1754835735627,2.37491266,4210.7,4210.4,0.1184]
[1754835735803,0.36770201,4211.0,4210.4,0.1184]
[1754835736341,0.36770201,4211.0,4208.6,0.04]
[1754835736342,2.37493429,4210.7,4209.2,2.37573625]
[1754835736548,0.1184,4209.9,4209.3,0.1184]
[1754835736846,3.752,4210.3,4208.3,0.4429]
[1754835736998,0.1184,4209.4,4208.7,0.1192]
[1754835737195,2.37566337,4209.4,4208.3,0.4429]
[1754835737500,2.37602997,4208.8,4208.3,0.1192]
[1754835737806,0.1184,4208.9,4208.0,0.1192]
[1754835737807,2.3760306,4208.7,4208.0,0.1192]
[1754835738001,2.3760306,4208.7,4207.9,0.4348]
[1754835738530,0.1184,4208.9,4207.9,0.4348]
[1754835738830,0.2733,4208.8,4207.8,0.1202]
[1754835739129,2.3760306,4208.7,4207.8,0.1202]
[1754835739332,2.3760306,4208.7,4207.8,2.49673215]
[1754835739535,2.8760376,4208.8,4207.9,2.37648229]
[1754835739704,2.3760306,4208.7,4207.8,0.001]
[1754835740031,2.5993306,4208.7,4207.8,0.001]
[1754835740334,2.3760306,4208.7,4207.8,0.001]
[1754835740506,6.87104195,4208.7,4207.8,0.001]
[1754835740901,36.92104195,4208.7,4207.8,0.001]
[1754835741104,37.47104195,4208.7,4207.8,0.001]
[1754835741634,37.42104195,4208.7,4207.8,0.001]
[1754835741832,37.47104195,4208.7,4207.8,0.001]
[1754835742198,37.42104195,4208.7,4207.8,0.001]
[1754835742807,37.47104195,4208.7,4207.8,0.001]
[1754835743615,40.47104195,4208.7,4207.8,0.001]
[1754835744702,36.44574195,4208.7,4207.8,0.001]
[1754835745002,40.19774195,4208.7,4207.8,0.001]
[1754835746006,40.47104195,4208.7,4207.8,0.001]
[1754835746206,40.19774195,4208.7,4207.8,0.001]
[1754835746732,40.19774195,4208.7,4207.9,0.4348]
[1754835747041,38.04501135,4208.7,4207.8,0.001]
[1754835747244,34.61727352,4208.6,4207.8,0.001]
[1754835747410,3.55,4208.3,4207.8,0.001]
[1754835747605,3.0,4208.1,4207.8,0.001]
[1754835747807,2.37648233,4207.9,4207.8,0.001]
[1754835748014,3.0,4208.1,4207.8,0.001]
[1754835748214,3.3752,4208.1,4207.8,0.001]
[1754835748620,2.37642825,4208.0,4207.8,0.001]
[1754835748838,2.37646798,4208.0,4207.8,0.001]
[1754835749028,3.3752,4208.1,4207.8,0.001]
[1754835749352,2.37642585,4208.0,4207.8,0.001]
[1754835749646,5.37648233,4207.9,4207.8,0.001]
[1754835750141,3.0,4207.9,4207.8,0.001]
[1754835750344,0.27675936,4208.0,4207.8,0.001]
[1754835750519,0.3752,4208.1,4207.8,0.4358]
[1754835750728,3.751,4208.0,4207.9,0.9276]
[1754835752342,3.751,4208.0,4207.9,3.30408233]
[1754835753544,5.704,4208.7,4208.4,2.3761945]
[1754835753845,3.751,4208.6,4208.5,3.30374351]
[1754835756652,3.751,4208.6,4207.9,2.37642589]
[1754835756851,4.1261,4208.6,4207.9,2.37648233]
[1754835757220,0.1192,4208.0,4207.8,2.37753548]
[1754835757546,3.8692,4208.0,4207.9,2.37648233]
[1754835757951,3.8692,4208.0,4207.9,3.30408233]
[1754835759163,3.8692,4208.0,4207.8,0.001]
[1754835760952,3.8692,4208.0,4207.8,2.37752367]
[1754835761661,3.8692,4208.0,4207.8,0.001]
[1754835762062,3.8692,4208.0,4207.8,0.4358]
[1754835765886,0.1192,4208.0,4207.9,2.37648233]
[1754835766081,3.8682,4208.0,4207.9,2.37648233]
[1754835767821,0.002,4208.6,4208.5,2.37614351]
[1754835767822,0.1212,4208.6,4208.5,2.37614351]
[1754835768072,3.75,4208.6,4207.9,0.52288526]
[1754835768241,0.1192,4208.5,4207.9,0.1192]
[1754835768640,0.1192,4208.5,4208.4,2.37619998]
[1754835768869,0.1192,4208.5,4208.1,2.376356]
[1754835769174,0.1192,4208.5,4208.3,2.37625603]
[1754835769548,0.1192,4208.5,4208.2,2.37629608]
[1754835769869,0.1192,4208.5,4207.8,0.4358]
[1754835769870,2.37619998,4208.4,4207.8,0.4358]
[1754835770073,0.1192,4208.1,4207.8,0.4358]
[1754835771155,3.75,4208.6,4208.0,2.37642585]
[1754835771485,3.8692,4208.6,4208.2,2.37625927]
[1754835771867,3.8692,4208.6,4208.0,2.49562034]
[1754835772169,3.8692,4208.6,4208.0,0.78714203]
[1754835772391,3.8692,4208.6,4208.0,0.1192]
[1754835772679,3.8692,4208.6,4208.0,2.49558011]
[1754835772983,0.1192,4208.2,4208.0,2.37638011]
[1754835773645,0.1192,4208.2,4207.8,0.4358]
[1754835773844,0.1212,4208.6,4208.0,0.1192]
[1754835774273,0.1212,4208.6,4208.5,2.37614351]
[1754835774466,0.002,4208.6,4208.5,2.73295786]
[1754835775313,0.002,4208.6,4208.5,6.50371929]
[1754835775580,0.002,4208.6,4208.5,6.47995786]
[1754835775746,1e-08,4208.6,4208.5,9.47995786]
[1754835778577,0.002,4209.5,4209.4,2.37563548]
[1754835778779,0.002,4209.5,4209.4,6.55991326]
[1754835778975,0.002,4209.5,4209.4,6.67831326]
[1754835782489,0.002,4209.5,4209.4,6.24003548]
[1754835782657,0.002,4209.5,4209.4,2.49403548]
[1754835782858,0.002,4209.5,4209.4,3.39403548]
[1754835784097,0.002,4209.5,4209.4,2.49403548]
[1754835787983,0.002,4209.5,4209.4,2.37563548]
[1754835788199,0.1204,4209.5,4209.3,2.97567523]
[1754835788370,0.1204,4209.5,4209.4,2.37563548]
[1754835788583,0.1204,4209.5,4209.1,2.3758026]
[1754835788779,0.1204,4209.5,4208.9,6.11887776]
[1754835788972,0.1204,4209.5,4209.2,2.37574617]
[1754835788973,0.002,4209.5,4209.2,2.37574617]
[1754835789170,0.002,4209.5,4209.4,2.37563548]
[1754835789605,0.002,4209.5,4209.4,2.84243548]
[1754835790108,0.002,4209.5,4209.4,4.03238999]
[1754835790610,1e-08,4209.9,4209.8,2.37540975]
[1754835790775,0.1184,4210.3,4210.2,2.37518407]
[1754835791108,0.04,4210.9,4210.8,2.37484563]
[1754835791473,0.04,4210.9,4210.8,3.30904563]
[1754835792104,0.04,4210.9,4210.8,2.37484563]
[1754835792403,0.04,4210.9,4210.4,0.1184]
[1754835792577,0.04,4210.9,4210.7,2.37486817]
[1754835792777,0.04,4210.9,4210.6,2.37495571]
[1754835793211,0.04,4210.9,4210.4,0.1184]
[1754835793411,0.04,4210.9,4210.2,0.1184]
[1754835793612,0.04,4210.9,4210.8,2.49324563]
[1754835793777,0.04,4210.9,4210.8,0.1184]
[1754835794102,0.04,4210.9,4210.5,0.9342]
[1754835794103,0.04,4210.9,4210.5,2.37497145]
[1754835794304,0.04,4210.9,4210.4,0.1184]
[1754835794510,0.2753,4210.8,4210.2,1.0]
[1754835794801,0.1184,4210.4,4210.2,1.0]
[1754835795594,0.3417,4210.4,4210.2,1.0]
[1754835795793,0.1184,4210.4,4210.2,1.0]
[1754835796175,0.24933711,4210.3,4210.2,1.0]
[1754835796596,0.1184,4210.4,4210.2,1.0]
[1754835798083,2.49351317,4210.4,4210.2,1.0]
[1754835798288,0.1184,4210.4,4210.2,1.0]
[1754835799181,2.49347917,4210.4,4210.2,1.0]
[1754835799378,0.1184,4210.4,4210.2,1.0]
[1754835799592,0.27167124,4210.3,4210.2,1.0]
[1754835802813,0.1184,4210.4,4210.2,1.0]
[1754835804222,0.1184,4210.4,4210.3,3.26382766]
[1754835804517,0.1184,4210.7,4210.4,2.37507125]
[1754835804723,0.1184,4210.7,4210.6,2.37495843]
[1754835805020,0.04,4210.9,4210.8,2.37484563]
[1754835805231,0.04,4210.9,4210.8,2.9505304]
[1754835805525,0.04,4210.9,4210.8,3.8392304]
[1754835806112,0.04,4210.9,4210.8,3.98137885]
[1754835806294,0.04,4210.9,4210.8,7.72237885]
[1754835806497,0.04,4210.9,4210.8,7.6986304]
[1754835807987,0.04,4210.9,4210.8,10.6986304]
[1754835808313,0.04,4210.9,4210.8,11.96182983]
[1754835808814,0.04,4210.9,4210.8,10.6986304]
[1754835809404,1e-08,4210.9,4210.8,10.6986304]
[1754835811141,1e-08,4210.9,4210.8,10.6966304]
[1754835812742,1e-08,4210.9,4210.8,5.22067043]
[1754835813042,1e-08,4210.9,4210.8,7.6966304]
[1754835815020,1e-08,4210.9,4210.8,6.23124563]
[1754835815207,1e-08,4210.9,4210.8,0.1184]
[1754835815397,1e-08,4210.9,4210.6,2.37495843]
[1754835815899,1e-08,4210.9,4210.5,0.1184]
[1754835816229,1e-08,4210.9,4210.5,2.49339999]
[1754835816399,1e-08,4210.9,4210.5,0.1184]
[1754835816728,0.1184,4210.7,4210.2,1.0]
[1754835816908,0.1184,4210.7,4210.3,2.37512766]
[1754835817102,0.1184,4210.7,4210.4,2.37504761]
[1754835817514,0.1184,4210.7,4210.5,2.37497297]
[1754835817820,0.1184,4210.7,4210.5,2.37501484]
[1754835818405,0.1184,4210.7,4210.4,0.4352]
[1754835818728,0.1184,4210.7,4210.5,2.37496781]
[1754835819104,0.1184,4210.7,4210.4,2.81026522]
[1754835819302,0.1184,4210.7,4210.5,2.37501294]
[1754835820370,0.1184,4210.7,4210.5,2.37501484]
[1754835821214,0.1184,4210.7,4210.4,0.4352]
[1754835821410,0.1184,4210.7,4210.6,2.37495843]
[1754835822118,1e-08,4210.9,4210.8,2.37484563]
[1754835822323,1e-08,4210.9,4210.8,2.39859408]
[1754835822526,1e-08,4210.9,4210.8,3.28729408]
[1754835823524,1e-08,4210.9,4210.8,6.26354563]
[1754835824147,1e-08,4210.9,4210.8,10.00054563]
[1754835824437,1e-08,4210.9,4210.8,11.2380904]
[1754835829129,1e-08,4210.9,4210.8,11.2390904]
[1754835831058,1e-08,4211.4,4210.9,5.37478923]
[1754835831357,1e-08,4211.5,4211.4,2.37450728]
[1754835831516,1e-08,4211.5,4211.4,6.82287835]
[1754835831842,1e-08,4211.5,4211.4,7.76107835]
[1754835832046,1e-08,4211.5,4211.4,7.87947835]
[1754835833139,0.04,4211.9,4211.8,2.37428177]
[1754835833140,1e-08,4211.9,4211.8,2.37428177]
[1754835833338,1e-08,4211.9,4211.8,6.13302458]
[1754835833542,1e-08,4211.9,4211.8,7.99203998]
[1754835833746,1e-08,4211.9,4211.8,8.11043998]
[1754835836526,1e-08,4211.9,4211.8,11.66043998]
[1754835836731,0.04,4212.9,4212.8,2.37371819]
[1754835836950,0.04,4212.9,4212.8,6.22711819]
[1754835837255,0.04,4212.9,4212.8,7.08858342]
[1754835837430,0.04,4212.9,4212.8,8.02678342]
[1754835839455,0.04,4212.9,4212.8,7.08858342]
[1754835839952,0.04,4212.9,4212.8,7.55238342]
[1754835840125,0.04,4212.9,4212.8,8.02678342]
[1754835840738,1e-08,4212.9,4212.8,8.02678342]
[1754835844348,0.1184,4214.5,4212.8,5.65306523]
[1754835844554,4.75585008,4216.5,4213.9,2.37309631]
[1754835844555,0.85133121,4216.5,4213.9,2.37309631]
[1754835844739,0.35335418,4216.4,4214.8,2.37259181]
[1754835845069,1e-08,4214.9,4214.8,6.10559181]
[1754835846830,1e-08,4214.9,4214.8,6.56939181]
[1754835847039,1e-08,4214.9,4214.8,7.51103816]
[1754835847268,1e-08,4214.9,4213.9,0.4638]
[1754835847441,1e-08,4214.9,4214.8,2.37259181]
[1754835847957,1e-08,4214.9,4214.5,2.37271489]
[1754835848146,0.2753,4214.8,4213.3,6.4381]
[1754835848345,0.2753,4214.8,4214.1,2.37294134]
[1754835848548,2.63743553,4214.7,4213.8,3.732]
[1754835848730,0.26478064,4214.7,4214.3,2.372873]
[1754835848926,1e-08,4214.9,4214.3,2.372873]
[1754835849163,0.2753,4214.7,4214.3,2.3728523]
[1754835849465,0.052,4214.6,4213.2,4.74698566]
[1754835849630,0.2753,4214.6,4213.3,3.732]
[1754835849830,0.37953,4214.5,4213.4,2.37334881]
[1754835850035,0.37953,4214.5,4213.5,2.37331935]
[1754835850036,2.37290881,4214.3,4213.5,2.37331935]
[1754835850233,2.59624508,4214.2,4213.4,2.37337279]
[1754835850439,2.37307801,4214.0,4213.2,2.37347071]
[1754835850762,2.37307801,4214.0,4212.8,3.732]
[1754835850763,0.2753,4213.9,4213.4,2.3733687]
[1754835850934,0.3168241,4213.9,4213.3,2.37342759]
[1754835851130,0.2233,4213.8,4213.5,2.37331324]
[1754835851331,0.32753,4214.5,4213.6,2.37321348]
[1754835851332,0.2233,4214.2,4213.6,2.37321348]
[1754835851658,2.97564088,4214.5,4213.6,2.37322014]
[1754835851858,0.60283,4214.5,4213.2,3.732]
[1754835852060,0.60283,4214.5,4212.7,3.732]
[1754835852061,30.360283,4214.4,4212.7,3.732]
[1754835852260,2.37303713,4214.1,4211.9,2.3742254]
[1754835852560,0.2753,4214.3,4213.3,2.37338897]
[1754835852761,0.60083668,4214.2,4213.3,2.37338897]
[1754835852935,2.42498631,4214.1,4213.1,2.37349686]
[1754835853129,2.42498631,4214.1,4212.9,2.37361869]
[1754835853130,0.2233,4214.0,4213.2,2.37348825]
[1754835853351,0.2233,4214.0,4212.7,3.732]
[1754835853729,0.2233,4214.0,4213.0,2.3736055]
[1754835853962,0.60083668,4214.2,4213.0,0.61056055]
[1754835854259,1e-08,4214.9,4214.3,2.37287323]
[1754835854472,1e-08,4214.9,4214.7,2.37260084]
[1754835854674,0.1184,4214.8,4214.7,2.37260084]
[1754835855148,1e-08,4214.9,4214.7,2.37260084]
[1754835855149,1e-08,4214.9,4214.8,2.37259181]
[1754835856375,1e-08,4214.9,4214.8,2.39631772]
[1754835856578,1e-08,4214.9,4214.8,2.37259181]
[1754835857466,2.92259181,4214.8,4214.7,0.1184]
[1754835857767,2.92259181,4214.8,4213.2,2.37349283]
[1754835857768,0.55,4214.7,4213.2,2.37349283]
[1754835858074,0.55,4214.7,4213.4,2.37338016]
[1754835858075,2.372715,4214.6,4213.4,2.37338016]
[1754835858236,2.372715,4214.6,4212.8,0.4876]
[1754835858237,2.3727607,4214.5,4213.6,2.37322112]
[1754835858437,0.2753,4214.6,4213.7,0.21757911]
[1754835858658,0.2753,4214.6,4213.8,0.21757911]
[1754835858853,0.15182892,4214.5,4213.9,0.21757911]
[1754835859063,0.69298918,4214.8,4214.0,0.21763555]
[1754835859270,0.69298918,4214.8,4213.2,3.74]
[1754835859271,0.69298918,4214.8,4214.1,0.21763555]
[1754835859478,1e-08,4214.9,4213.8,0.4284]
[1754835859479,1e-08,4214.9,4214.2,0.21765209]
[1754835859774,1e-08,4214.9,4214.3,0.21766824]
[1754835860074,1e-08,4214.9,4214.7,2.37262605]
[1754835860256,1e-08,4214.9,4214.8,2.59022356]
[1754835862071,1e-08,4214.9,4214.8,0.21763175]
[1754835862369,1e-08,4214.9,4214.7,2.37262639]
[1754835862567,1e-08,4214.9,4214.0,2.80140132]
[1754835862768,1e-08,4214.9,4214.2,2.37288546]
[1754835862941,1e-08,4214.9,4214.3,0.21775682]
[1754835863272,0.26477864,4214.9,4214.4,0.21775682]
[1754835863570,3.74100001,4214.9,4214.7,2.37263422]
[1754835863739,1e-08,4214.9,4214.7,2.37263422]
[1754835863940,1e-08,4214.9,4214.5,0.4284]
[1754835863941,1e-08,4214.9,4214.5,2.37275573]
[1754835864137,1e-08,4214.9,4214.6,0.21786337]
[1754835864342,1e-08,4214.9,4214.7,0.21786337]
[1754835864558,1e-08,4214.9,4214.6,2.3726869]
[1754835864758,1e-08,4214.9,4214.0,0.4284]
[1754835864759,1e-08,4214.9,4214.7,1.13394461]
[1754835864967,1e-08,4214.9,4214.8,2.59053642]
[1754835865475,1e-08,4214.9,4214.8,0.21794382]
[1754835865645,2.37261991,4214.8,4213.4,0.916]
[1754835865849,2.37261991,4214.8,4213.5,0.21804037]
[1754835865850,0.55,4214.8,4213.5,0.21804037]
[1754835866144,0.23724232,4214.9,4213.7,2.37321119]
[1754835866344,3.97924232,4214.9,4213.8,1.15777191]
[1754835866550,3.97924232,4214.9,4214.3,2.37283014]
[1754835866751,3.97924232,4214.9,4214.4,2.59084726]
[1754835867075,3.74200001,4214.9,4214.6,2.37266313]
[1754835867243,3.74200001,4214.9,4214.7,0.21804037]
[1754835867244,1e-08,4214.9,4214.7,0.21804037]
[1754835867443,1e-08,4214.9,4214.8,0.21804037]
[1754835868002,0.11840001,4214.9,4214.8,0.21804037]
[1754835868153,1e-08,4214.9,4214.8,0.21804037]
[1754835868776,0.24907958,4214.9,4214.1,0.1184]
[1754835868983,2.37277172,4214.5,4214.2,0.21816493]
[1754835869277,3.9643,4214.5,4214.3,0.21816493]
[1754835869594,3.741,4214.5,4213.8,2.37310857]
[1754835869754,0.1184,4214.2,4213.9,2.59135517]
[1754835870099,32.92298592,4214.1,4214.0,0.21825942]
[1754835870301,32.92298592,4214.1,4211.9,0.001]
[1754835870302,3.55,4213.8,4211.9,0.001]
[1754835870503,3.55,4213.6,4212.0,0.21841215]
[1754835870779,0.55,4212.9,4212.1,0.21841215]
[1754835870944,33.743,4212.8,4211.9,0.001]
[1754835871151,0.55,4212.6,4212.0,0.21853748]
[1754835871454,2.37403725,4212.3,4211.9,0.001]
[1754835871667,2.37396477,4212.4,4212.0,0.21833955]
[1754835871967,2.37416904,4212.0,4211.9,0.001]
[1754835872169,2.37416904,4212.0,4211.9,0.21936765]
[1754835872465,2.37416904,4212.0,4211.9,0.001]
[1754835872798,2.92416904,4212.0,4211.9,0.001]
[1754835872951,3.806925,4212.0,4211.9,0.001]
[1754835873373,33.806925,4212.0,4211.9,0.001]
[1754835874659,3.806925,4212.0,4211.9,0.001]
[1754835874860,7.550925,4212.0,4211.9,0.001]
[1754835876088,37.550925,4212.0,4211.9,0.001]
[1754835877448,7.545925,4212.0,4211.9,0.001]
[1754835878286,37.545925,4212.0,4211.9,0.001]
[1754835880167,37.664325,4212.0,4211.9,0.001]
[1754835880465,40.664325,4212.0,4211.9,0.001]
[1754835880872,40.939625,4212.0,4211.9,0.001]
[1754835882187,40.939625,4212.0,4211.9,1e-08]
[1754835885180,36.925325,4212.0,4211.9,1e-08]
[1754835885386,40.109325,4212.0,4211.9,1e-08]
[1754835885767,40.659325,4212.0,4211.9,1e-08]
[1754835886665,38.28515596,4212.0,4211.9,0.42840001]
[1754835886862,37.4024,4212.0,4211.9,0.91600001]
[1754835887070,39.77656904,4212.0,4211.9,0.91600001]
[1754835887289,37.4024,4212.0,4211.9,0.91600001]
[1754835887470,34.4024,4212.0,4211.9,0.91600001]
[1754835887890,36.77656904,4212.0,4211.9,0.91600001]
[1754835888313,36.77656904,4212.0,4211.9,0.42840001]
[1754835888814,36.77656904,4212.0,4211.9,1e-08]
[1754835890622,41.311725,4212.0,4211.9,1e-08]
[1754835890824,41.363725,4212.0,4211.9,1e-08]
[1754835890992,41.088425,4212.0,4211.9,1e-08]
[1754835892195,41.363725,4212.0,4211.9,1e-08]
[1754835892631,41.088425,4212.0,4211.9,1e-08]
[1754835893430,41.363725,4212.0,4211.9,1e-08]
[1754835894311,5.92433815,4211.7,4211.6,1e-08]
[1754835894523,40.72504801,4211.7,4211.6,1e-08]
[1754835896956,40.94834801,4211.7,4211.6,1e-08]
[1754835897261,41.50969799,4211.7,4211.6,1e-08]
[1754835897424,41.67883806,4211.7,4211.6,1e-08]
[1754835897778,41.45553806,4211.7,4211.6,1e-08]
[1754835898344,41.58841944,4211.7,4211.6,1e-08]
[1754835898828,41.45553806,4211.7,4211.6,1e-08]
[1754835899435,42.34402493,4211.7,4211.6,1e-08]
[1754835899637,42.21093948,4211.7,4211.6,1e-08]
[1754835899824,41.70549034,4211.7,4211.6,1e-08]
[1754835900025,41.57240484,4211.7,4211.6,1e-08]
[1754835900231,38.57240484,4211.7,4211.6,1e-08]
[1754835900456,38.7055811,4211.7,4211.6,1e-08]
[1754835900753,41.7055811,4211.7,4211.6,0.43640001]
[1754835900967,41.7055811,4211.7,4211.6,0.93500001]
[1754835900968,41.57240484,4211.7,4211.6,0.93500001]
[1754835901126,40.90553806,4211.7,4211.6,0.93500001]
[1754835901460,40.90640339,4211.7,4211.6,0.93500001]
[1754835901770,41.45640339,4211.7,4211.6,0.93500001]
[1754835902064,41.23439799,4211.7,4211.6,0.93500001]
[1754835902423,41.45647556,4211.7,4211.6,0.93500001]
[1754835902626,40.28708813,4211.7,4211.6,0.93500001]
[1754835902880,0.002,4212.0,4211.6,0.93500001]
[1754835903085,0.002,4212.0,4211.7,1.15389529]
[1754835903291,0.002,4212.0,4211.9,2.3742254]
[1754835903480,0.002,4212.0,4211.9,2.59312069]
[1754835903652,0.002,4212.0,4211.9,3.88093276]
[1754835903848,3.737,4212.0,4211.9,1.15389529]
[1754835904152,0.55,4211.7,4211.6,1e-08]
[1754835904374,2.92433815,4211.7,4211.6,0.21883381]
[1754835904653,2.92433815,4211.7,4211.6,1e-08]
[1754835904654,36.43590734,4211.7,4211.6,1e-08]
[1754835904972,38.75294802,4211.7,4211.6,1e-08]
[1754835905169,38.75294802,4211.7,4211.6,0.43640001]
[1754835905370,38.75294802,4211.7,4211.6,0.93500001]
[1754835905753,35.92433815,4211.7,4211.6,0.93500001]
[1754835906188,3.0,4211.7,4211.6,0.93500001]
[1754835906475,3.735,4211.8,4211.6,1.15379115]
[1754835906688,0.002,4212.0,4211.8,2.3742641]
[1754835906689,3.737,4212.0,4211.8,2.3742641]
[1754835906979,3.737,4212.0,4211.9,1.15379114]
[1754835907981,0.002,4212.0,4211.9,1.15379114]
[1754835908371,0.002,4212.0,4211.9,1.50659798]
[1754835908682,0.002,4212.0,4211.9,3.88082338]
[1754835909781,0.002,4212.0,4211.9,1.15379114]
[1754835910081,3.736,4212.0,4211.9,1.15379114]
[1754835910667,4.286,4212.0,4211.9,0.21879114]
[1754835910862,6.66016904,4212.0,4211.9,0.21879114]
[1754835911269,2.924239,4211.9,4211.6,0.43640001]
[1754835911469,3.734,4211.8,4211.7,0.2185548]
[1754835911868,6.65828177,4211.8,4211.7,0.2185548]
[1754835912083,0.002,4212.0,4211.7,1.15355914]
[1754835912379,0.002,4212.0,4211.8,1.15355914]
[1754835912679,0.552,4212.0,4211.9,0.21855914]
[1754835912859,4.4084,4212.0,4211.9,0.21855914]
[1754835913059,40.4608214,4212.0,4211.6,1e-08]
[1754835913281,0.6684,4211.7,4211.6,1e-08]